[Event "44th Chess Olympiad Open 2022"]
[Site "Chennai"]
[Date "2022.08.05"]
[Round "7.5"]
[White "Adhiban, B.."]
[Black "Almeida Quintana, Omar"]
[Result "1/2-1/2"]
[ECO "C41"]
[WhiteElo "2598"]
[BlackElo "2523"]
[Annotator "TA"]
[PlyCount "85"]
[EventDate "2022.07.29"]
[EventType "team-tourn"]
[EventCountry "IND"]
[SourceTitle "playchess.com"]
[Source "ChessBase"]
[SourceQuality "1"]
[WhiteTeam "India"]
[BlackTeam "Cuba"]
[WhiteTeamCountry "IND"]
[BlackTeamCountry "CUB"]
[TimeControl "40/5400+30:1800+30"]

{[%evp 17,85,41,43,47,34,42,39,1,11,0,8,9,10,12,0,-13,0,-37,20,0,0,0,0,0,0,0,0,-22,-13,-48,-65,-59,-13,-13,-21,-12,-14,-18,0,0,17,9,13,0,0,0,5,5,7,0,0,0,0,0,0,0,19,0,0,0,0,0,0,-8,0,0,0,-8,4,4]} 1. d4 {[%emt 0:00:03]} d6 {[%emt 0:00:19]} 2. e4 {[%emt 0:00:08]} Nf6 {[%emt 0:00:04]} 3. Nc3 {[%emt 0:00:04]} e5 {[%emt 0:00:03]} 4. Nf3 {[%emt 0:00:05]} Nbd7 {[%emt 0:00:05]} 5. Bc4 {[%emt 0:00:11]} Be7 {[%emt 0:00:09]} 6. O-O {[%emt 0:00:08]} O-O {[%emt 0:00:04]} 7. a4 {[%emt 0:00:09][%cal Ba2a4,Ba4a5][%mdl 32]} c6 {[%emt 0:00:26]} 8. Re1 {[%emt 0:00:11]} h6 {[%emt 0:01:09] is now debated instead of 8...b6.} 9. h3 {[%emt 0:00:56]} Re8 {[%emt 0:01:52]} 10. a5 {[%emt 0:02:55] C41: Philidor Defence.} exd4 {[%emt 0:09:49]} 11. Nxd4 {[%emt 0:02:38]} Ne5 {[%emt 0:00:21]} 12. Bf1 {[%emt 0:07:02] [#] White is slightly better.} Bd7 $146 {[%emt 0:01:26]} ({Predecessor:} 12... Qc7 13. Bf4 Bf8 14. Bg3 Bd7 15. Nf3 b5 16. axb6 axb6 17. Rxa8 Rxa8 18. Nh4 b5 {0-1 (58) Movsesian,J (2305)-Vajda,S (2375) Paks 2009}) 13. Bf4 {[%emt 0:03:11]} b5 {[%emt 0:08:59]} 14. axb6 {[%emt 0:01:51]} axb6 {[%emt 0:00:17]} 15. Rxa8 {[%emt 0:05:21]} Qxa8 {[%emt 0:00:29]} 16. Bh2 {[%emt 0:03:19]} b5 {[%emt 0:03:54]} 17. f4 {[%emt 0:09:31]} b4 {[%emt 0:04:15]} (17... Nc4 $15 18. b3 Na3) 18. Nb1 {[%emt 0:04:10]} Ng6 {[%emt 0:00:14]} 19. Nd2 {[%emt 0:01:05]} Qa7 {[%emt 0:08:10]} 20. c3 {[%emt 0:00:51]} Bd8 {[%emt 0:04:32]} 21. Kh1 {[%emt 0:01:47]} Bb6 {[%emt 0:10:18]} 22. f5 {[%emt 0:08:16]} Ne5 {[%emt 0:00:49]} 23. N2f3 {[%emt 0:00:26]} bxc3 $1 {[%emt 0:10:03]} 24. bxc3 {[%emt 0:00:06]} Qa3 {[%emt 0:02:31]} (24... Qa5 $1 $15 {is superior.} 25. Qb1 Nxf3 26. Nxf3 d5 27. exd5 Rxe1 28. Qxe1 cxd5) 25. Nxe5 $11 {[%emt 0:06:47] The position is equal.} dxe5 {[%emt 0:00:09]} 26. Qb3 $1 {[%emt 0:00:55]} Qxb3 {[%emt 0:09:55]} 27. Nxb3 {[%emt 0:00:02]} h5 {[%emt 0:00:05]} 28. Bg3 {[%emt 0:00:43]} g5 {[%emt 0:02:51]} 29. fxg6 {[%emt 0:02:32]} fxg6 {[%emt 0:00:12]} 30. Bc4+ {[%emt 0:04:27]} Kg7 {[%emt 0:05:43]} 31. Bh4 {[%emt 0:00:31]} Be6 {[%emt 0:01:25]} 32. Nd2 {[%emt 0:02:15]} Ba5 {[%emt 0:00:55]} 33. Re3 {[%emt 0:00:30]} Bb6 {[%emt 0:02:01]} 34. Re2 {[%emt 0:05:46]} Ba5 {[%emt 0:00:39]} 35. Re3 {[%emt 0:06:08]} Bb6 {[%emt 0:00:26]} 36. Rf3 {[%emt 0:01:14]} Nd7 {[%emt 0:01:09]} (36... Nxe4 $2 37. Nxe4 (37. Bxe6 Nxd2 38. Rf7+ Kh6 $11) 37... Bxc4 38. Nd6 $18) 37. Bxe6 {[%emt 0:00:11]} Rxe6 {[%emt 0:00:02]} 38. Nc4 {[%emt 0:00:05]} Bc7 {[%emt 0:00:55]} 39. Rd3 {[%emt 0:14:25]} Nc5 {[%emt 0:01:08][%csl LRd3,LRe4]} 40. Rd1 {[%emt 0:00:07]} Kf8 {[%emt 0:08:16]} 41. Re1 {[%emt 0:35:10]} Re8 {[%emt 0:32:33]} 42. Kh2 {[%emt 0:00:00]} Kf7 {[%emt 0:00:00]} 43. Rf1+ {[%emt 0:00:00] Weighted Error Value: White=0.07 (flawless) /Black=0.09 (flawless)} 1/2-1/2

[Event "44th Chess Olympiad Open 2022"]
[Site "Chennai"]
[Date "2022.08.05"]
[Round "7.5"]
[White "Albornoz Cabrera, Carlos Daniel"]
[Black "Gukesh D"]
[Result "0-1"]
[ECO "B22"]
[WhiteElo "2566"]
[BlackElo "2684"]
[Annotator "TA"]
[PlyCount "91"]
[EventDate "2022.07.29"]
[EventType "team-tourn"]
[EventCountry "IND"]
[SourceTitle "playchess.com"]
[Source "ChessBase"]
[SourceQuality "1"]
[WhiteTeam "Cuba"]
[BlackTeam "India"]
[WhiteTeamCountry "CUB"]
[BlackTeamCountry "IND"]
[TimeControl "40/5400+30:1800+30"]

{[%evp 12,91,12,25,15,4,14,0,0,-12,0,-35,-46,-33,-30,-33,-38,-41,-46,-58,-47,-55,-59,-63,-57,-64,-58,-59,-54,-46,-56,-102,-102,-97,-85,-112,-90,-101,-115,-102,-106,-126,-128,-141,-148,-142,-146,-143,-86,-106,-108,-99,-93,-202,-188,-197,-181,-165,-148,-159,-140,-152,-143,-167,-168,-198,-193,-271,-246,-227,-88,-81,0,-231,-141,-244,-222,-227,-227,-989,-945,-801]} 1. e4 {[%emt 0:00:06]} c5 {[%emt 0:01:17]} 2. Nf3 {[%emt 0:00:10]} Nc6 {[%emt 0:01:15]} 3. c3 {[%emt 0:00:25]} d5 {[%emt 0:02:05]} 4. exd5 {[%emt 0:00:05]} Qxd5 {[%emt 0:00:06]} 5. d4 {[%emt 0:00:05]} Nf6 {[%emt 0:01:02]} 6. dxc5 {[%emt 0:03:40]} Qxd1+ {[%emt 0:09:27]} 7. Kxd1 {[%emt 0:00:04]} e6 {[%emt 0:04:12] B22: Sicilian: 2 c3.} 8. b4 {[%emt 0:31:34]} a5 {[%emt 0:00:29]} 9. b5 {[%emt 0:01:16]} Ne7 {[%emt 0:02:15] [#] The position is equal.} 10. Ne5 $146 {[%emt 0:06:22]} ({Predecessor:} 10. Kc2 Ne4 11. Be3 Nd5 12. Bd4 Bxc5 13. Bxc5 Nxc5 14. Bc4 Nb6 15. Nbd2 e5 16. Nxe5 {0-1 (35) Gerard,A (1834)-Lukasevicius,P (2051) ICCF email 2018}) 10... Ng6 {[%emt 0:04:38]} (10... Ned5 {seems wilder.} 11. c6 Ne4 12. Ke1 f6) 11. Nxg6 {[%emt 0:06:36]} hxg6 {[%emt 0:00:27]} 12. Be3 {[%emt 0:04:44]} Ng4 {[%emt 0:04:04]} 13. c6 $1 {[%emt 0:00:08]} bxc6 {[%emt 0:01:09]} 14. bxc6 {[%emt 0:01:33]} Nxe3+ {[%emt 0:04:39]} 15. fxe3 {[%emt 0:00:04]} Ba6 {[%emt 0:04:57] Prevents Bb5.} 16. Nd2 {[%emt 0:03:38]} Bxf1 {[%emt 0:02:04]} 17. Nxf1 {[%emt 0:00:31]} Rh5 {[%emt 0:00:31]} 18. Ng3 {[%emt 0:03:03]} Re5 {[%emt 0:09:05]} 19. Re1 {[%emt 0:04:05]} Bd6 {[%emt 0:12:18]} 20. Rb1 {[%emt 0:05:58]} Ra6 {[%emt 0:00:14]} 21. Kc2 {[%emt 0:01:23]} (21. Ke2 $15 {was preferrable.}) 21... Rxc6 $17 {[%emt 0:00:11]} 22. e4 {[%emt 0:00:51]} Rc7 {[%emt 0:13:34]} 23. Re3 {[%emt 0:01:06]} Ke7 {[%emt 0:00:25]} 24. Rd3 {[%emt 0:01:54]} Rec5 {[%emt 0:04:23]} 25. Ne2 {[%emt 0:07:21]} Be5 {[%emt 0:00:18]} ({Much weaker is} 25... Bxh2 $6 26. g3 $11) 26. g3 {[%emt 0:00:55]} Rc4 {[%emt 0:00:37]} 27. Re3 {[%emt 0:00:16]} Bd6 $1 {[%emt 0:00:07]} 28. Kd3 {[%emt 0:06:34]} Ra4 {[%emt 0:00:14] aiming for ...Bc5.} 29. Nc1 {[%emt 0:00:22]} g5 {[%emt 0:02:47] Black is more active.} ({Better is} 29... Be5 30. Rb3 Rac4) 30. Rb5 {[%emt 0:00:42]} f6 {[%emt 0:01:21]} 31. Kc2 {[%emt 0:03:27]} Be5 {[%emt 0:02:25]} 32. Kb3 {[%emt 0:01:59]} (32. h3 $17) 32... Rac4 $19 {[%emt 0:00:01]} 33. Ne2 {[%emt 0:00:09]} a4+ {[%emt 0:00:04][%cal Ba5a4,Ba4a3][%mdl 32]} 34. Kc2 {[%emt 0:00:15]} g4 {[%emt 0:01:21]} 35. Rb6 {[%emt 0:02:16]} g5 {[%emt 0:03:30]} 36. Ra6 {[%emt 0:00:47]} Bd6 {[%emt 0:06:24]} 37. Kd3 {[%emt 0:01:26]} a3 $1 {[%emt 0:00:30]} 38. e5 {[%emt 0:01:34]} fxe5 {[%emt 0:01:00][%cal Bf6e5,Be5e4][%mdl 32]} ({Stronger than} 38... Bxe5 39. Rxa3 R4c5 40. Nd4 $17) 39. Ra5 {[%emt 0:01:27]} (39. Re4 $142 Rxe4 40. Kxe4) 39... Kf6 {[%emt 0:00:45] Threatens to win with ...R4c5.} 40. Rb5 {[%emt 0:00:39]} Kf5 {[%emt 0:01:48] Prevents Re4.} (40... R4c5 $19 41. Rb1 Rd5+ 42. Kc2 Bc5) 41. Nd4+ $17 {[%emt 0:02:04] [#]} Kf6 {[%emt 0:00:09] Dancing on a razor blade.} (41... Kg6 $1 $17 42. Rb3 exd4 43. Rxe6+ Kf5 44. Rxd6 Rxc3+ 45. Rxc3 dxc3) 42. Ne2 $19 {[%emt 0:00:11]} Ra4 {[%emt 0:04:41]} 43. Nc1 {[%emt 0:12:50] [#]} (43. Re4 $17 Rxe4 44. Kxe4) 43... e4+ $1 {[%emt 0:07:28]} 44. Kc2 {[%emt 0:00:45]} Rac4 {[%emt 0:00:39][%cal Od6f4] And now ...Bf4! would win.} 45. Kb3 $2 {[%emt 0:03:23] [#]} (45. Rb3) 45... Bf4 $1 {[%emt 0:01:00][%mdl 512]} 46. gxf4 {[%emt 0:01:44] Weighted Error Value: White=0.28 (precise) /Black=0.09 (flawless)} 0-1

[Event "44th Chess Olympiad Open 2022"]
[Site "Chennai"]
[Date "2022.08.05"]
[Round "7.5"]
[White "Ortiz Suarez, Isan Reynaldo"]
[Black "Praggnanandhaa R"]
[Result "0-1"]
[ECO "C54"]
[WhiteElo "2526"]
[BlackElo "2648"]
[Annotator "TA"]
[PlyCount "82"]
[EventDate "2022.07.29"]
[EventType "team-tourn"]
[EventCountry "IND"]
[SourceTitle "playchess.com"]
[Source "ChessBase"]
[SourceQuality "1"]
[WhiteTeam "Cuba"]
[BlackTeam "India"]
[WhiteTeamCountry "CUB"]
[BlackTeamCountry "IND"]
[TimeControl "40/5400+30:1800+30"]

{[%evp 17,82,0,0,0,0,0,0,0,12,-32,-23,-17,-27,-11,0,-16,0,-114,-103,-108,-111,-112,-79,-101,-109,-104,-102,-191,-192,-212,-61,-123,-129,-124,-122,-152,-168,-173,-135,-172,-175,-169,-169,-179,-188,-186,-213,-209,-193,-156,-104,-236,-232,-336,-304,-316,-216,-414,-408,-371,-189,-951,-951,-29987,-29988,-29997,-29998]} 1. e4 {[%emt 0:00:03]} e5 {[%emt 0:00:38]} 2. Nf3 {[%emt 0:00:27]} Nc6 {[%emt 0:00:07]} 3. Bc4 {[%emt 0:00:34]} Bc5 {[%emt 0:00:10]} 4. c3 {[%emt 0:00:50]} Nf6 {[%emt 0:00:07]} 5. d4 {[%emt 0:00:33]} exd4 {[%emt 0:00:08]} 6. e5 {[%emt 0:00:03]} d5 {[%emt 0:00:27]} 7. Bb5 {[%emt 0:03:38]} Ne4 {[%emt 0:00:11]} 8. cxd4 {[%emt 0:00:03]} Bb6 {[%emt 0:00:32]} 9. Nc3 {[%emt 0:00:09]} O-O {[%emt 0:01:13]} 10. Be3 {[%emt 0:01:07] C54: Giuoco Piano: 4 c3 Nf6, main lines with 5 d4 and 5 d3.} Bg4 {[%emt 0:03:13]} 11. Rc1 {[%emt 0:13:10]} Ne7 {[%emt 0:06:52][%cal Bc6e7,Be7f5,Bf5e3][%mdl 32]} 12. h3 {[%emt 0:00:44] The position is equal.} Bh5 {[%emt 0:02:22] [#]} 13. O-O $146 {[%emt 0:04:47]} (13. g4 $5 {[%cal Rg4h5]} Nxc3 14. bxc3 $14 (14. Rxc3 Bg6 $11)) ({Predecessor:} 13. g4 Bg6 14. h4 f5 15. exf6 Nxf6 16. Ne5 c6 17. Be2 Nd7 18. Nxd7 Qxd7 19. h5 {½-½ (28) Van Foreest,J (2688)-Grischuk,A (2778) Zagreb 2021}) 13... Nf5 {[%emt 0:08:38][%cal Oe4g3]} 14. g4 {[%emt 0:10:44]} Nxe3 {[%emt 0:01:19]} 15. fxe3 {[%emt 0:00:05]} Bg6 {[%emt 0:00:19]} 16. Bd3 {[%emt 0:07:15]} c5 {[%emt 0:04:02]} 17. Ne2 {[%emt 0:04:47]} (17. Kg2 $11) 17... cxd4 $1 $17 {[%emt 0:12:35]} 18. exd4 {[%emt 0:00:19]} f5 {[%emt 0:01:41]} 19. exf6 {[%emt 0:23:45]} Qxf6 {[%emt 0:06:41] Strongly threatening ...Rae8.} 20. Kg2 {[%emt 0:00:07]} Qd6 {[%emt 0:02:27]} 21. Qc2 {[%emt 0:00:16]} (21. Ne5 $2 Nf2 $1 {[%mdl 512]} 22. Rxf2 Rxf2+ 23. Kxf2 Qxe5 24. Bxg6 hxg6 $19) 21... Rf6 {[%emt 0:08:50] Hoping for ...Raf8. Black is much more active.} (21... Qf6 $6 22. Ne5 Qd6 23. Nxg6 hxg6 24. Bxe4 dxe4 25. Qxe4 $11) 22. g5 {[%emt 0:06:41] [#]} (22. Nh4 $17 {was worth a try.}) 22... Re6 $1 $19 {[%emt 0:05:41]} 23. Ne5 {[%emt 0:02:47]} Rae8 $2 {[%emt 0:07:36]} (23... Rxe5 $19 24. dxe5 Qxe5) 24. Nf4 {[%emt 0:05:43]} (24. Nxg6 $15 hxg6 25. Nf4) 24... Rxe5 $17 {[%emt 0:09:43]} ({Reject} 24... Bxd4 $6 25. Nexg6 hxg6 26. Qc7 $11 (26. Nxe6 $2 Qg3+ 27. Kh1 Qxh3+ 28. Qh2 Ng3#)) 25. dxe5 {[%emt 0:00:05]} Qxe5 {[%emt 0:00:06]} 26. Rf3 {[%emt 0:02:43] Prevents Be3.} (26. Nxg6 $2 {is a self mate.} Qg3+ 27. Kh1 Qxh3+ 28. Qh2 Ng3#) 26... Qxg5+ {[%emt 0:03:16]} 27. Kh1 {[%emt 0:01:13]} Bf7 {[%emt 0:02:52]} 28. Rcf1 {[%emt 0:02:23]} Ng3+ {[%emt 0:02:29]} 29. Rxg3 {[%emt 0:00:04]} Qxg3 {[%emt 0:00:06]} 30. Bxh7+ {[%emt 0:00:03]} Kh8 {[%emt 0:00:04] aiming for ...Re1.} 31. Bg6 {[%emt 0:02:12]} Re1 $40 {[%emt 0:02:51][%mdl 128] Black attacks with force.} 32. Rxe1 {[%emt 0:01:08]} Qxe1+ {[%emt 0:00:05]} 33. Kg2 {[%emt 0:00:02]} Bg8 {[%emt 0:01:20]} ({Better is} 33... Qg1+ 34. Kf3 Qf1+ 35. Kg4 Be3 36. Qc8+ Bg8) 34. Bf5 {[%emt 0:03:54] White does not recover from this.} (34. Qe2 $17 Qg1+ 35. Kf3) 34... g5 $19 {[%emt 0:01:27] ...Qg1+ is the strong threat.} 35. Nd3 {[%emt 0:00:21]} (35. Nh5 $142) 35... Qg1+ {[%emt 0:00:50]} 36. Kf3 {[%emt 0:00:10]} Qe3+ {[%emt 0:01:05]} 37. Kg4 $2 {[%emt 0:01:24]} (37. Kg2 {was the only defense.}) 37... Kg7 {[%emt 0:01:15] Threatens to win with ...Bf7.} ({But not} 37... Qd4+ $2 38. Kf3 $19) 38. Qc3+ {[%emt 0:01:13]} Bd4 {[%emt 0:02:24] Really sharp!} (38... d4 $142 {( -> ...Bd5)} 39. Qe1 Bxa2 40. Qxe3 dxe3) 39. Qc7+ $2 {[%emt 0:02:49]} (39. Qe1) 39... Bf7 {[%emt 0:00:10]} 40. Qd7 {[%emt 0:01:07]} Be5 {[%emt 0:01:34][%csl Ge5][%cal Re3g3]} 41. Bg6 {[%emt 0:12:06]} Qg3+ {[%emt 0:01:14] Weighted Error Value: White=0.74/Black=0.19 (very precise)} 0-1

[Event "44th Chess Olympiad Open 2022"]
[Site "Chennai"]
[Date "2022.08.05"]
[Round "7.6"]
[White "Yakubboev, Nodirbek"]
[Black "Cruz, Cristhian"]
[Result "1-0"]
[ECO "D41"]
[WhiteElo "2620"]
[BlackElo "2579"]
[Annotator "ChessBase"]
[PlyCount "61"]
[EventDate "2022.07.29"]
[EventType "team-tourn"]
[EventCountry "IND"]
[SourceTitle "playchess.com"]
[Source "ChessBase"]
[SourceQuality "1"]
[WhiteTeam "Uzbekistan"]
[BlackTeam "Peru"]
[WhiteTeamCountry "UZB"]
[BlackTeamCountry "PER"]
[TimeControl "40/5400+30:1800+30"]

1. c4 {[%emt 0:00:06]} e6 {[%emt 0:00:49]} 2. Nf3 {[%emt 0:00:13]} Nf6 {[%emt 0:01:19]} 3. Nc3 {[%emt 0:00:01]} d5 {[%emt 0:01:37]} 4. d4 {[%emt 0:00:01]} c5 {[%emt 0:01:05]} 5. cxd5 {[%emt 0:03:56]} Nxd5 {[%emt 0:00:35]} 6. e4 {[%emt 0:00:48]} Nxc3 {[%emt 0:00:30]} 7. bxc3 {[%emt 0:00:03]} cxd4 {[%emt 0:01:04]} 8. cxd4 {[%emt 0:00:04]} Bb4+ {[%emt 0:00:11]} 9. Bd2 {[%emt 0:00:05]} Bxd2+ {[%emt 0:00:07]} 10. Qxd2 {[%emt 0:00:01]} O-O {[%emt 0:01:57]} 11. Bc4 {[%emt 0:00:55]} Nd7 {[%emt 0:02:32]} 12. O-O {[%emt 0:00:50]} b6 {[%emt 0:00:43]} 13. Rad1 {[%emt 0:00:29]} Bb7 {[%emt 0:00:22]} 14. Rfe1 {[%emt 0:00:05]} Rc8 {[%emt 0:02:17]} 15. Bb3 {[%emt 0:00:02]} Qf6 {[%emt 0:02:25]} 16. d5 {[%emt 0:21:45]} Nc5 {[%emt 0:16:17]} 17. Nd4 {[%emt 0:07:09]} Rfd8 {[%emt 0:15:44]} 18. Qe3 {[%emt 0:07:08]} exd5 {[%emt 0:22:53]} 19. e5 {[%emt 0:02:47]} Qh6 {[%emt 0:01:27]} 20. f4 {[%emt 0:14:52]} g6 {[%emt 0:09:50]} 21. Nb5 {[%emt 0:10:13]} Nxb3 {[%emt 0:04:54]} 22. axb3 {[%emt 0:03:25]} d4 {[%emt 0:00:09]} 23. Nxd4 {[%emt 0:03:00]} Qh5 {[%emt 0:00:15]} 24. Rd2 {[%emt 0:02:24]} Qg4 {[%emt 0:03:42]} 25. h3 {[%emt 0:01:50]} Qd7 {[%emt 0:00:33]} 26. f5 {[%emt 0:01:00]} Qe8 {[%emt 0:05:11]} 27. f6 {[%emt 0:07:11]} Kh8 {[%emt 0:00:38]} 28. e6 {[%emt 0:01:22]} fxe6 {[%emt 0:00:21]} 29. Nxe6 {[%emt 0:00:19]} Rxd2 {[%emt 0:00:55]} 30. Qxd2 {[%emt 0:00:11]} Qf7 {[%emt 0:03:55]} 31. Nd8 {[%emt 0:00:19]} 1-0

[Event "44th Chess Olympiad Open 2022"]
[Site "Chennai"]
[Date "2022.08.05"]
[Round "7.6"]
[White "Vokhidov, Shamsiddin"]
[Black "Vera Siguenas, Deivy"]
[Result "1-0"]
[ECO "B62"]
[WhiteElo "2552"]
[BlackElo "2503"]
[Annotator "ChessBase"]
[PlyCount "93"]
[EventDate "2022.07.29"]
[EventType "team-tourn"]
[EventCountry "IND"]
[SourceTitle "playchess.com"]
[Source "ChessBase"]
[SourceQuality "1"]
[WhiteTeam "Uzbekistan"]
[BlackTeam "Peru"]
[WhiteTeamCountry "UZB"]
[BlackTeamCountry "PER"]
[TimeControl "40/5400+30:1800+30"]

1. e4 {[%emt 0:00:04]} c5 {[%emt 0:00:04]} 2. Nf3 {[%emt 0:00:06]} d6 {[%emt 0:00:03]} 3. d4 {[%emt 0:00:06]} cxd4 {[%emt 0:00:02]} 4. Nxd4 {[%emt 0:00:06]} Nf6 {[%emt 0:00:04]} 5. Nc3 {[%emt 0:00:04]} Nc6 {[%emt 0:00:03]} 6. Bg5 {[%emt 0:00:06]} e6 {[%emt 0:00:04]} 7. Qd3 {[%emt 0:00:03]} Bd7 {[%emt 0:00:32]} 8. Ndb5 {[%emt 0:01:32]} Nb4 {[%emt 0:00:21]} 9. Qd1 {[%emt 0:00:07]} Qb8 {[%emt 0:01:29]} 10. Bf4 {[%emt 0:02:24]} e5 {[%emt 0:06:43]} 11. Bg5 {[%emt 0:00:09]} a6 {[%emt 0:01:31]} 12. Na3 {[%emt 0:00:07]} b5 {[%emt 0:00:39]} 13. Bxf6 {[%emt 0:01:02]} gxf6 {[%emt 0:00:06]} 14. Nab1 {[%emt 0:00:03]} Be6 {[%emt 0:24:11]} 15. a4 {[%emt 0:14:25]} bxa4 {[%emt 0:11:11]} 16. Rxa4 {[%emt 0:01:23]} Bd7 {[%emt 0:06:02]} 17. Ra1 {[%emt 0:05:11]} Qc7 {[%emt 0:03:08]} 18. Na3 {[%emt 0:05:03]} Be6 {[%emt 0:16:21]} 19. Be2 {[%emt 0:14:53]} Bh6 {[%emt 0:03:04]} 20. O-O {[%emt 0:12:32]} O-O {[%emt 0:00:09]} 21. Bg4 {[%emt 0:03:38]} Qd7 {[%emt 0:09:52]} 22. h3 {[%emt 0:02:38]} Rfc8 {[%emt 0:04:28]} 23. Qf3 {[%emt 0:01:11]} Bxg4 {[%emt 0:05:41]} 24. hxg4 {[%emt 0:00:22]} Qe6 {[%emt 0:02:22]} 25. Rfd1 {[%emt 0:02:21]} Rab8 {[%emt 0:01:57]} 26. Rab1 {[%emt 0:01:06]} Kg7 {[%emt 0:00:33]} 27. b3 {[%emt 0:02:06]} Nxc2 {[%emt 0:01:47]} 28. Nxc2 {[%emt 0:04:12]} Rxb3 {[%emt 0:00:04]} 29. Rxb3 {[%emt 0:00:09]} Qxb3 {[%emt 0:00:03]} 30. Rxd6 {[%emt 0:00:07]} Bg5 {[%emt 0:01:35]} 31. Ne3 {[%emt 0:00:29]} Rxc3 {[%emt 0:01:04]} 32. Nf5+ {[%emt 0:00:21]} Kg6 {[%emt 0:00:04]} 33. Rd8 {[%emt 0:00:40]} h5 {[%emt 0:00:37]} 34. gxh5+ {[%emt 0:02:25]} Kh7 {[%emt 0:00:04]} 35. Ne3 {[%emt 0:00:38]} Qe6 {[%emt 0:01:24]} 36. Qf5+ {[%emt 0:01:02]} Qxf5 {[%emt 0:00:33]} 37. Nxf5 {[%emt 0:00:02]} Rc7 {[%emt 0:00:28]} 38. Ra8 {[%emt 0:00:21]} Rc4 {[%emt 0:00:33]} 39. f3 {[%emt 0:00:30]} Ra4 {[%emt 0:00:31]} 40. Rf8 {[%emt 0:00:17]} a5 {[%emt 0:00:31]} 41. Rxf7+ {[%emt 0:31:45]} Kg8 {[%emt 0:30:04]} 42. Ra7 {[%emt 0:00:37]} Ra1+ {[%emt 0:00:06]} 43. Kh2 {[%emt 0:00:54]} a4 {[%emt 0:00:05]} 44. Kh3 {[%emt 0:01:30]} a3 {[%emt 0:00:07]} 45. Kg4 {[%emt 0:00:15]} a2 {[%emt 0:00:47]} 46. Ne7+ {[%emt 0:01:42]} Kh7 {[%emt 0:00:41]} 47. Nd5+ {[%emt 0:00:16]} 1-0

[Event "44th Chess Olympiad Open 2022"]
[Site "Chennai"]
[Date "2022.08.05"]
[Round "7.6"]
[White "Cordova, Emilio"]
[Black "Abdusattorov, Nodirbek"]
[Result "0-1"]
[ECO "D02"]
[WhiteElo "2549"]
[BlackElo "2688"]
[Annotator "TA"]
[PlyCount "74"]
[EventDate "2022.07.29"]
[EventType "team-tourn"]
[EventCountry "IND"]
[SourceTitle "playchess.com"]
[Source "ChessBase"]
[SourceQuality "1"]
[WhiteTeam "Peru"]
[BlackTeam "Uzbekistan"]
[WhiteTeamCountry "PER"]
[BlackTeamCountry "UZB"]
[TimeControl "40/5400+30:1800+30"]

{[%evp 9,74,3,6,0,1,11,0,0,9,-6,0,0,0,-11,0,0,0,2,14,0,0,0,0,-14,-15,-40,-42,-49,-52,-41,-48,-38,-47,-89,-82,-95,-97,-87,-87,-120,-106,-143,-110,-188,-169,-229,-198,-247,-260,-361,-364,-357,-371,-487,-472,-662,-667,-820,-811,-789,-771,-770,-777,-740,-755,-717,-712]} 1. Nf3 {[%emt 0:00:08]} d5 {[%emt 0:00:13]} 2. g3 {[%emt 0:01:44]} Nc6 {[%emt 0:00:07]} 3. d4 {[%emt 0:00:54]} Bf5 {[%emt 0:00:07]} 4. c3 {[%emt 0:02:10]} e6 {[%emt 0:00:10]} 5. Bg2 {[%emt 0:02:10]} h6 {[%emt 0:00:09]} 6. Nbd2 {[%emt 0:02:57] D02: 1 d4 d5 2 Nf3 sidelines, including 2...Nf6 3 g3 and 2...Nf6 3 Bf4.} Nf6 {[%emt 0:00:26]} 7. O-O {[%emt 0:03:37]} Bd6 {[%emt 0:05:49]} 8. b3 {[%emt 0:03:35] The position is equal.} O-O {[%emt 0:02:37]} 9. Bb2 {[%emt 0:02:03]} a5 {[%emt 0:09:34] [#]} 10. a4 $146 {[%emt 0:13:52]} ({Predecessor:} 10. a3 Re8 11. c4 Bf8 12. Ne5 Nxe5 13. dxe5 Nd7 14. Qc1 c6 15. Qc3 Nc5 16. Qe3 {0-1 (61) Karavade,E (2192)-Swati,G (2261) Mumbai 2003}) 10... Re8 {[%emt 0:06:03]} 11. e3 {[%emt 0:02:51]} Nb8 {[%emt 0:11:28]} 12. Qe2 {[%emt 0:08:50]} Nbd7 {[%emt 0:02:06]} 13. c4 {[%emt 0:00:17]} Bb4 {[%emt 0:01:57]} 14. Rfd1 {[%emt 0:15:42]} c6 {[%emt 0:00:57]} 15. Ne5 {[%emt 0:04:59]} Qb6 {[%emt 0:09:03]} 16. e4 {[%emt 0:13:45]} Bh7 {[%emt 0:01:41]} 17. exd5 {[%emt 0:00:58]} exd5 {[%emt 0:01:01]} 18. cxd5 {[%emt 0:00:04]} Nxd5 {[%emt 0:01:58]} 19. Ndc4 {[%emt 0:01:21]} Qa6 {[%emt 0:08:29]} 20. Qh5 {[%emt 0:02:14]} Re7 {[%emt 0:00:01]} 21. Rac1 {[%emt 0:05:29]} N7f6 {[%emt 0:00:27] Black keeps a firm grip on the game.} 22. Qh4 {[%emt 0:03:24]} Rae8 {[%emt 0:01:17]} 23. Bf1 {[%emt 0:02:08][%cal Oc4d6]} Qa8 {[%emt 0:00:45]} 24. Bg2 {[%emt 0:04:24]} Qd8 {[%emt 0:02:02]} 25. Bf3 {[%emt 0:00:04]} Bf5 {[%emt 0:01:09]} 26. Kh1 {[%emt 0:02:19] [#]} (26. Rf1 $17 {keeps fighting.}) 26... Re6 $1 $19 {[%emt 0:01:55] Strongly threatening ...g5.} 27. g4 {[%emt 0:00:39]} (27. Kg1 $142) 27... Be4 {[%emt 0:05:23]} 28. Qg3 {[%emt 0:00:20]} (28. Bxe4 {was necessary.} Nxe4 29. Qxd8 Rxd8 30. Rf1) 28... b5 {[%emt 0:04:34]} 29. Ne3 {[%emt 0:00:22]} Nxe3 {[%emt 0:00:35]} 30. fxe3 {[%emt 0:00:49]} Qd5 {[%emt 0:00:10][%cal Oe6e5] [#] And now ...Rxe5! would win.} 31. Bg2 {[%emt 0:00:48]} Qxb3 {[%emt 0:00:57] Black is clearly winning.} 32. Ba1 {[%emt 0:00:04]} (32. Qf2 $142 Bxg2+ 33. Qxg2) 32... Ba3 {[%emt 0:00:38]} 33. g5 {[%emt 0:01:22]} Bxc1 {[%emt 0:00:10]} 34. Rxc1 {[%emt 0:00:03]} hxg5 {[%emt 0:00:55]} 35. Qxg5 {[%emt 0:00:10]} Bxg2+ {[%emt 0:00:44]} 36. Qxg2 {[%emt 0:01:12]} Qxe3 {[%emt 0:00:21]} 37. Rg1 {[%emt 0:00:10]} Qe4 {[%emt 0:00:10] Weighted Error Value: White=0.33/Black=0.03 (flawless)} 0-1